fUST/lending_fUST_20241125
["ID","MTS","AMOUNT","RATE_DAILY","PERIOD"]
[343274729,1732537848096,-500.0,0.0002718,2]
[343274730,1732537848105,-500.0,0.0002718,2]
[343274731,1732537848118,-500.0,0.0002718,2]
[343274732,1732537848128,-500.0,0.0002718,2]
[343274733,1732537848137,-500.0,0.0002718,2]
[343274734,1732537848147,-213.07565516,0.0002718,2]
[343274735,1732537848157,-500.0,0.0002718,2]
[343274736,1732537848167,-165.78163385,0.0002718,2]
[343274737,1732537848179,-500.0,0.0002718,2]
[343274738,1732537848199,-500.0,0.0002718,2]
[343274739,1732537848215,-467.98906985,0.0002718,2]
[343274740,1732537848234,-180.34597896,0.0002718,2]
[343274741,1732537848252,-500.0,0.0002718,2]
[343274742,1732537848270,-500.0,0.0002718,2]
[343274743,1732537848288,-500.0,0.0002718,2]
[343274744,1732537848304,-500.0,0.0002718,2]
[343274745,1732537848318,-454.85630496,0.0002718,2]
[343274746,1732537848336,-500.0,0.0002718,2]
[343274747,1732537848357,-500.0,0.0002718,2]
[343274748,1732537848377,-500.0,0.0002718,2]
[343274749,1732537848392,-500.0,0.0002718,2]
[343274750,1732537848411,-500.0,0.0002718,2]
[343274751,1732537848431,-500.0,0.0002718,2]
[343274752,1732537848446,-180.05603968,0.0002718,2]
[343274753,1732537848462,-500.0,0.0002718,2]
[343274754,1732537848477,-500.0,0.0002718,2]
[343274755,1732537848493,-500.0,0.0002718,2]
[343274756,1732537848507,-500.0,0.0002718,2]
[343274757,1732537848522,-500.0,0.0002718,2]
[343274758,1732537848538,-557.60908066,0.0002718,2]
[343274759,1732537848553,-271.7116023,0.0002718,2]
[343274760,1732537848568,-500.0,0.0002718,2]
[343274761,1732537848584,-637.65105223,0.0002718,2]
[343274762,1732537848598,-500.0,0.0002718,2]
[343274763,1732537848615,-500.0,0.0002718,2]
[343274764,1732537848630,-500.0,0.0002718,2]
[343274765,1732537848646,-500.0,0.0002718,2]
[343274766,1732537848661,-500.0,0.0002718,2]
[343274767,1732537848677,-500.0,0.0002718,2]
[343274768,1732537848693,-500.0,0.0002718,2]
[343274769,1732537848707,-500.0,0.0002718,2]
[343274770,1732537848722,-500.0,0.0002718,2]
[343274771,1732537848737,-500.0,0.0002718,2]
[343274772,1732537848752,-500.0,0.0002718,2]
[343274773,1732537848766,-759.69,0.0002718,2]
[343274774,1732537848780,-500.0,0.0002718,2]
[343274775,1732537848795,-543.81980247,0.0002718,2]
[343274776,1732537848811,-500.0,0.0002718,2]
[343274777,1732537848904,-500.0,0.0002718,2]
[343274778,1732537848929,-500.0,0.0002718,2]
[343274779,1732537848939,-539.79236351,0.0002718,2]
[343274780,1732537848950,-500.0,0.0002718,2]
[343274781,1732537848959,-500.0,0.0002718,2]
[343274782,1732537848970,-542.74444538,0.0002718,2]
[343274783,1732537848980,-500.0,0.0002718,2]
[343274784,1732537848990,-500.0,0.0002718,2]
[343274785,1732537849001,-500.0,0.0002718,2]
[343274786,1732537849010,-500.0,0.0002718,2]
[343274787,1732537849020,-398.04393656,0.0002718,2]
[343274788,1732537849030,-500.0,0.0002718,2]
[343274789,1732537849040,-500.0,0.0002718,2]
[343274790,1732537849049,-500.0,0.0002718,2]
[343274791,1732537849059,-531.9505454,0.0002718,2]
[343274792,1732537849068,-500.0,0.0002718,2]
[343274793,1732537849078,-506.44,0.0002718,2]
[343274794,1732537849088,-500.0,0.0002718,2]
[343274795,1732537849099,-500.0,0.0002718,2]
[343274796,1732537849109,-500.0,0.0002718,2]
[343274797,1732537849123,-500.0,0.0002718,2]
[343274798,1732537849134,-500.0,0.0002718,2]
[343274799,1732537849144,-500.0,0.0002718,2]
[343274800,1732537849153,-500.0,0.0002718,2]
[343274801,1732537849164,-500.0,0.00027191,2]
[343274802,1732537849174,-3165.31,0.00027191,2]
[343274803,1732537849184,-769.4,0.00027191,2]
[343274804,1732537849194,-2256.66,0.00027191,2]
[343274805,1732537849205,-500.0,0.00027191,2]
[343274806,1732537849214,-500.0,0.00027191,2]
[343274807,1732537849224,-621.3,0.00027194,2]
[343274808,1732537849234,-500.0,0.00027194,2]
[343274809,1732537849245,-13350.69,0.00027194,2]
[343274810,1732537849255,-500.0,0.00027194,2]
[343274811,1732537849265,-500.0,0.00027194,2]
[343274812,1732537849275,-549.13,0.00027194,2]
[343274813,1732537849285,-500.0,0.00027194,2]
[343274814,1732537849295,-500.0,0.00027194,2]
[343274815,1732537849305,-500.0,0.00027194,2]
[343274816,1732537849315,-601.52,0.00027194,2]
[343274817,1732537849324,-500.0,0.00027194,2]
[343274818,1732537849333,-500.0,0.00027194,2]
[343274819,1732537849344,-500.0,0.00027194,2]
[343274820,1732537849354,-500.0,0.00027194,2]
[343274821,1732537849369,-500.0,0.00027194,2]
[343274822,1732537849378,-215.4,0.00027194,2]
[343274823,1732537849389,-500.0,0.00027194,2]
[343274824,1732537849399,-1119.37,0.00027194,2]
[343274825,1732537849409,-1000.0,0.00027221,2]
[343274826,1732537849423,-251.64,0.00027315,2]
[343274827,1732537849433,-501.61042375,0.00027315,2]
[343274828,1732537849444,-500.0,0.00027315,2]
[343274829,1732537849455,-500.0,0.00027315,2]
[343274830,1732537849465,-557.01283984,0.00027315,2]
[343274831,1732537849482,-503.3028168,0.00027315,2]
[343274832,1732537849493,-500.0,0.00027315,2]
[343274833,1732537849503,-549.93257842,0.00027315,2]
[343274834,1732537849513,-511.17501389,0.00027315,2]
[343274835,1732537849523,-504.40766851,0.00027315,2]
[343274836,1732537849534,-500.0,0.00027315,2]
[343274837,1732537849544,-500.0,0.00027315,2]
[343274838,1732537849554,-187.48288708,0.00027315,2]
[343274839,1732537849564,-267.91226214,0.00027315,2]
[343274840,1732537849574,-543.14738462,0.00027315,2]
[343274841,1732537849583,-502.15117397,0.00027315,2]
[343274842,1732537849593,-502.14038986,0.00027315,2]
[343274843,1732537849604,-503.21210995,0.00027315,2]
[343274844,1732537849618,-501.74380178,0.00027315,2]
[343274845,1732537849630,-566.38083477,0.00027315,2]
[343274846,1732537849640,-500.0,0.00027315,2]
[343274847,1732537849651,-502.14264893,0.00027315,2]
[343274848,1732537849661,-605.21071065,0.00027315,2]
[343274849,1732537849671,-514.83793607,0.00027315,2]
[343274850,1732537849680,-500.0,0.00027315,2]
[343274851,1732537849690,-548.92687138,0.00027315,2]
[343274852,1732537849700,-547.0089658,0.00027315,2]
[343274853,1732537849709,-163.42769984,0.00027315,2]
[343274854,1732537849719,-533.13694886,0.00027315,2]
[343274855,1732537849728,-504.55200511,0.00027315,2]
[343274856,1732537849739,-501.00909131,0.00027315,2]
[343274857,1732537849748,-500.0,0.00027315,2]
[343274858,1732537849758,-501.35096386,0.00027315,2]
[343274859,1732537849767,-500.0,0.00027315,2]
[343274860,1732537849778,-500.0,0.00027315,2]
[343274861,1732537849788,-503.02265841,0.00027315,2]
[343274862,1732537849842,-500.0,0.00027315,2]
[343274863,1732537849855,-549.07416287,0.00027315,2]
[343274864,1732537849868,-500.0,0.00027315,2]
[343274865,1732537849877,-530.03215881,0.00027315,2]
[343274866,1732537849886,-500.64405997,0.00027315,2]
[343274867,1732537849896,-516.17253663,0.00027315,2]
[343274868,1732537849906,-516.23289654,0.00027315,2]
[343274869,1732537849915,-500.0,0.00027315,2]
[343274870,1732537849925,-500.57273519,0.00027315,2]
[343274871,1732537849935,-500.0,0.00027315,2]
[343274872,1732537849944,-503.78942867,0.00027315,2]
[343274873,1732537849953,-500.0,0.00027315,2]
[343274874,1732537849963,-500.0,0.00027315,2]
[343274875,1732537849973,-502.1036097,0.00027315,2]
[343274876,1732537849982,-500.0,0.00027315,2]
[343274877,1732537849992,-501.5193535,0.00027315,2]
[343274878,1732537850002,-500.0,0.00027315,2]
[343274879,1732537850012,-506.14487476,0.00027315,2]
[343274880,1732537850021,-500.98055248,0.00027315,2]
[343274881,1732537850030,-500.0,0.00027315,2]
[343274882,1732537850040,-511.90055363,0.00027315,2]
[343274883,1732537850050,-500.0,0.00027315,2]
[343274884,1732537850060,-504.69658386,0.00027315,2]
[343274885,1732537850071,-552.74743148,0.00027315,2]
[343274886,1732537850081,-501.28375854,0.00027315,2]
[343274887,1732537850091,-500.0,0.00027315,2]
[343274888,1732537850100,-217.53040271,0.00027315,2]
[343274889,1732537850111,-500.0,0.00027315,2]
[343274890,1732537850124,-500.0,0.00027315,2]
[343274891,1732537850134,-500.0,0.00027315,2]
[343274892,1732537850145,-500.0,0.00027315,2]
[343274893,1732537850155,-500.0,0.00027315,2]
[343274894,1732537850165,-500.0,0.00027315,2]
[343274895,1732537850175,-500.0,0.00027315,2]
[343274896,1732537850185,-500.0,0.00027315,2]
[343274897,1732537850195,-500.0,0.00027315,2]
[343274898,1732537850205,-500.0,0.00027315,2]
[343274899,1732537850214,-500.0,0.00027315,2]
[343274900,1732537850224,-500.0,0.00027315,2]
[343274901,1732537850234,-500.0,0.00027315,2]
[343274902,1732537850244,-500.0,0.00027315,2]
[343274903,1732537850254,-500.0,0.00027315,2]
[343274904,1732537850264,-500.0,0.00027315,2]
[343274905,1732537850274,-500.0,0.00027315,2]
[343274906,1732537850284,-500.0,0.00027315,2]
[343274907,1732537850294,-500.0,0.00027315,2]
[343274908,1732537850304,-517.50347944,0.00027315,2]
[343274909,1732537850314,-500.0,0.00027315,2]
[343274910,1732537850324,-500.0,0.00027315,2]
[343274911,1732537850334,-500.0,0.00027315,2]
[343274912,1732537850344,-500.0,0.00027315,2]
[343274913,1732537850353,-500.0,0.00027315,2]
[343274914,1732537850363,-500.0,0.00027315,2]
[343274915,1732537850375,-500.0,0.00027315,2]
[343274916,1732537850385,-500.0,0.00027315,2]
[343274917,1732537850395,-500.0,0.00027315,2]
[343274918,1732537850405,-500.0,0.00027315,2]
[343274919,1732537850418,-500.0,0.00027315,2]
[343274920,1732537850428,-550.0,0.00027315,2]
[343274921,1732537850439,-500.0,0.00027315,2]
[343274922,1732537850449,-500.0,0.00027315,2]
[343274923,1732537850459,-500.0,0.00027315,2]
[343274924,1732537850468,-500.0,0.00027315,2]
[343274925,1732537850478,-500.0,0.00027315,2]
[343274926,1732537850492,-500.0,0.00027315,2]
[343274927,1732537850502,-500.0,0.00027315,2]
[343274928,1732537850512,-584.54,0.00027315,2]
[343274929,1732537850522,-1265.07,0.00027315,2]
[343274930,1732537850532,-500.0,0.00027315,2]
[343274931,1732537850541,-233.08427389,0.00027315,2]
[343274932,1732537850551,-500.0,0.00027315,2]
[343274933,1732537850561,-500.0,0.00027315,2]
[343274934,1732537850570,-500.0,0.00027315,2]
[343274935,1732537850579,-502.14488805,0.00027315,2]
[343274936,1732537850589,-500.0,0.00027315,2]
[343274937,1732537850599,-500.0,0.00027315,2]
[343274938,1732537850608,-500.0,0.00027315,2]
[343274939,1732537850620,-500.0,0.00027315,2]
[343274940,1732537850630,-706.06,0.00027315,2]
[343274941,1732537850639,-506.78535125,0.00027315,2]
[343274942,1732537850649,-500.0,0.00027315,2]
[343274943,1732537850660,-500.0,0.00027315,2]
[343274944,1732537850669,-500.0,0.00027315,2]
[343274945,1732537850680,-500.0,0.00027315,2]
[343274946,1732537850690,-500.0,0.00027315,2]
[343274947,1732537850699,-500.0,0.00027315,2]
[343274948,1732537850709,-500.0,0.00027315,2]
[343274949,1732537850718,-500.0,0.00027315,2]
[343274950,1732537850728,-151.0,0.00027382,6]
[343274951,1732537850738,-205.54300806,0.00027397,2]
[343274952,1732537850747,-161.742858,0.00027407,2]
[343274953,1732537850757,-500.0,0.00027453,2]
[343274954,1732537850767,-497.4282987,0.00027453,2]
[343274955,1732537850777,-500.0,0.00027453,2]
[343274956,1732537850786,-500.0,0.00027453,2]
[343274957,1732537850796,-500.0,0.00027453,2]
[343274958,1732537850805,-500.0,0.00027453,2]
[343274959,1732537850815,-500.0,0.00027453,2]
[343274960,1732537850825,-569.35196583,0.00027453,2]
[343274961,1732537850834,-501.91871027,0.00027453,2]
[343274962,1732537850845,-500.0,0.00027453,2]
[343274963,1732537850855,-500.0,0.00027453,2]
[343274964,1732537850866,-500.0,0.00027453,2]
[343274965,1732537850876,-500.0,0.00027453,2]
[343274966,1732537850885,-500.0,0.00027453,2]
[343274967,1732537850895,-500.0,0.00027453,2]
[343274968,1732537850904,-500.0,0.00027453,2]
[343274969,1732537850915,-500.07,0.00027453,2]
[343274970,1732537850924,-500.0,0.00027453,2]
[343274971,1732537850934,-500.0,0.00027453,2]
[343274972,1732537850944,-500.0,0.00027453,2]
[343274973,1732537850953,-408.905249,0.00027453,2]
[343274974,1732537850963,-500.0,0.00027453,2]
[343274975,1732537850972,-223.8,0.00027453,2]
[343274976,1732537850982,-500.0,0.00027453,2]
[343274977,1732537850991,-500.0,0.00027453,2]
[343274978,1732537851002,-500.0,0.00027453,2]
[343274979,1732537851012,-500.0,0.00027453,2]
[343274980,1732537851021,-554.78,0.00027453,2]
[343274981,1732537851031,-500.0,0.00027453,2]
[343274982,1732537851041,-598.02548337,0.00027453,2]
[343274983,1732537851050,-500.0,0.00027453,2]
[343274984,1732537851059,-500.0,0.00027453,2]
[343274985,1732537851069,-500.0,0.00027453,2]
[343274986,1732537851078,-500.0,0.00027453,2]
[343274987,1732537851088,-500.0,0.00027453,2]
[343274988,1732537851097,-500.0,0.00027453,2]
[343274989,1732537851107,-560.59,0.00027453,2]
[343274990,1732537851120,-500.0,0.00027453,2]
[343274991,1732537851130,-500.0,0.00027453,2]
[343274992,1732537851139,-500.0,0.00027453,2]
[343274993,1732537851149,-787.36,0.00027453,2]
[343274994,1732537851158,-5700.56,0.00027453,2]
[343274995,1732537851168,-500.0,0.00027453,2]
[343274996,1732537851177,-500.0,0.00027453,2]
[343274997,1732537851187,-500.0,0.00027453,2]
[343274998,1732537851196,-500.0,0.00027453,2]
[343274999,1732537851205,-500.0,0.00027453,2]
[343275000,1732537851215,-500.0,0.00027453,2]
[343275001,1732537851224,-1431.61,0.00027453,2]
[343275002,1732537851234,-500.0,0.00027453,2]
[343275003,1732537851244,-500.0,0.00027453,2]
[343275004,1732537851254,-500.0,0.00027453,2]
[343275005,1732537851263,-500.0,0.00027453,2]
[343275006,1732537851272,-500.0,0.00027453,2]
[343275007,1732537851283,-500.0,0.00027453,2]
[343275008,1732537851292,-500.0,0.00027453,2]
[343275009,1732537851302,-500.0,0.00027453,2]
[343275010,1732537851312,-500.0,0.00027453,2]
[343275011,1732537851322,-181.99874577,0.00027453,2]
[343275012,1732537851332,-500.0,0.00027453,2]
[343275013,1732537851341,-500.0,0.00027453,2]
[343275014,1732537851351,-419.83256505,0.00027453,2]
[343275015,1732537851362,-500.0,0.00027453,2]
[343275016,1732537851375,-500.0,0.00027453,2]
[343275017,1732537851384,-500.0,0.00027453,2]
[343275018,1732537851393,-500.0,0.00027453,2]
[343275019,1732537851402,-500.0,0.00027453,2]
[343275020,1732537851414,-500.0,0.00027453,2]
[343275021,1732537851425,-500.0,0.00027453,2]
[343275022,1732537851435,-500.0,0.00027453,2]
[343275023,1732537851445,-500.0,0.00027453,2]
[343275024,1732537851455,-500.0,0.00027453,2]
[343275025,1732537851464,-500.0,0.00027453,2]
[343275026,1732537851474,-500.0,0.00027453,2]
[343275027,1732537851483,-500.0,0.00027453,2]
[343275028,1732537851495,-500.0,0.00027453,2]
[343275029,1732537851504,-500.0,0.00027453,2]
[343275030,1732537851514,-474.76856184,0.00027453,2]
[343275031,1732537851524,-500.0,0.00027453,2]
[343275032,1732537851534,-500.0,0.00027453,2]
[343275033,1732537851543,-500.0,0.00027453,2]
[343275034,1732537851553,-500.0,0.00027453,2]
[343275035,1732537851563,-500.0,0.00027453,2]
[343275036,1732537851573,-500.0,0.00027453,2]
[343275037,1732537851582,-500.0,0.00027453,2]
[343275038,1732537851592,-500.0,0.00027454,2]
[343275039,1732537851601,-505.27020751,0.00027454,2]
[343275040,1732537851611,-500.0,0.00027454,2]
[343275041,1732537851622,-500.0,0.00027454,2]
[343275042,1732537851632,-319.74,0.00027454,2]
[343275043,1732537851641,-500.0,0.00027454,2]
[343275044,1732537851651,-502.71477904,0.00027454,2]
[343275045,1732537851661,-500.0,0.00027454,2]
[343275046,1732537851670,-470.94,0.00027454,2]
[343275047,1732537851680,-505.72643211,0.00027454,2]
[343275048,1732537851690,-500.0,0.00027454,2]
[343275049,1732537851699,-500.0,0.00027454,2]
[343275050,1732537851709,-505.5,0.00027454,2]
[343275051,1732537851718,-500.0,0.00027454,2]
[343275052,1732537851728,-500.0,0.00027454,2]
[343275053,1732537851738,-500.0,0.00027454,2]
[343275054,1732537851747,-504.99448048,0.00027454,2]
[343275055,1732537851757,-500.0,0.00027454,2]
[343275056,1732537851767,-500.0,0.00027454,2]
[343275057,1732537851777,-500.0,0.00027454,2]
[343275058,1732537851787,-506.33744728,0.00027454,2]
[343275059,1732537851798,-500.0,0.00027454,2]
[343275060,1732537851808,-502.95100477,0.00027454,2]
[343275061,1732537851818,-500.0,0.00027454,2]
[343275062,1732537851827,-500.0,0.00027454,2]
[343275063,1732537851837,-500.0,0.00027454,2]
[343275064,1732537851847,-500.0,0.00027454,2]
[343275065,1732537851859,-500.0,0.00027454,2]
[343275066,1732537851872,-500.0,0.00027454,2]
[343275067,1732537851882,-504.35355145,0.00027454,2]
[343275068,1732537851891,-500.0,0.00027454,2]
[343275069,1732537851901,-504.5098949,0.00027454,2]
[343275070,1732537851910,-573.96809334,0.00027454,2]
[343275071,1732537851920,-502.04579738,0.00027454,2]
[343275072,1732537851930,-500.0,0.00027454,2]
[343275073,1732537851940,-553.00742285,0.00027454,2]
[343275074,1732537851950,-631.82150799,0.00027454,2]
[343275075,1732537851960,-500.0,0.00027454,2]
[343275076,1732537851970,-500.0,0.00027454,2]
[343275077,1732537851979,-500.0,0.00027454,2]
[343275078,1732537851989,-501.64925747,0.00027454,2]
[343275079,1732537852085,-250.0,0.00027454,2]
[343275080,1732537852095,-500.0,0.00027454,2]
[343275081,1732537852105,-500.97607019,0.00027454,2]
[343275082,1732537852115,-500.0,0.00027454,2]
[343275083,1732537852126,-500.0,0.00027454,2]
[343275084,1732537852135,-500.0,0.00027454,2]
[343275085,1732537852145,-500.0,0.00027454,2]
[343275086,1732537852155,-500.0,0.00027454,2]
[343275087,1732537852165,-500.0,0.00027454,2]
[343275088,1732537852175,-500.91096344,0.00027454,2]
[343275089,1732537852183,-500.0,0.00027454,2]
[343275090,1732537852193,-629.04925858,0.00027454,2]
[343275091,1732537852203,-500.0,0.00027454,2]
[343275092,1732537852213,-500.0,0.00027454,2]
[343275093,1732537852223,-500.0,0.00027454,2]
[343275094,1732537852232,-500.0,0.00027454,2]
[343275095,1732537852242,-500.0,0.00027454,2]
[343275096,1732537852251,-500.0,0.00027454,2]
[343275097,1732537852260,-500.0,0.00027454,2]
[343275098,1732537852271,-500.0,0.00027454,2]
[343275099,1732537852280,-500.0,0.00027454,2]
[343275100,1732537852290,-500.0,0.00027454,2]
[343275101,1732537852300,-500.0,0.00027454,2]
[343275102,1732537852310,-500.0,0.00027454,2]
[343275103,1732537852319,-500.0,0.00027454,2]
[343275104,1732537852329,-500.0,0.00027454,2]
[343275105,1732537852339,-500.0,0.00027454,2]
[343275106,1732537852349,-500.0,0.00027454,2]
[343275107,1732537852358,-500.0,0.00027454,2]
[343275108,1732537852371,-500.0,0.00027454,2]
[343275109,1732537852381,-500.0,0.00027454,2]
[343275110,1732537852391,-500.0,0.00027454,2]
[343275111,1732537852401,-500.0,0.00027454,2]
[343275112,1732537852411,-500.0,0.00027454,2]
[343275113,1732537852425,-500.0,0.00027454,2]
[343275114,1732537852435,-500.0,0.00027454,2]
[343275115,1732537852445,-500.0,0.00027454,2]
[343275116,1732537852455,-500.0,0.00027454,2]
[343275117,1732537852465,-320.09962211,0.00027454,2]
[343275118,1732537852474,-500.0,0.00027454,2]
[343275119,1732537852485,-500.0,0.00027454,2]
[343275120,1732537852496,-500.0,0.00027454,2]
[343275121,1732537852506,-500.0,0.00027454,2]
[343275122,1732537852516,-500.0,0.00027454,2]
[343275123,1732537852526,-332.37046284,0.00027454,2]
[343275124,1732537852536,-467.77087787,0.00027454,2]
[343275125,1732537852545,-500.0,0.00027454,2]
[343275126,1732537852555,-500.0,0.00027454,2]
[343275127,1732537852565,-500.0,0.00027454,2]
[343275128,1732537852574,-500.0,0.00027454,2]
[343275129,1732537852584,-500.0,0.00027454,2]
[343275130,1732537852596,-500.0,0.00027454,2]
[343275131,1732537852605,-500.0,0.00027454,2]
[343275132,1732537852617,-500.0,0.00027454,2]
[343275133,1732537852627,-500.0,0.00027454,2]
[343275134,1732537852637,-500.0,0.00027454,2]
[343275135,1732537852646,-500.0,0.00027454,2]
[343275136,1732537852656,-500.0,0.00027454,2]
[343275137,1732537852665,-188.24903723,0.00027454,2]
[343275138,1732537852675,-500.0,0.00027454,2]
[343275139,1732537852685,-172.40580216,0.00027454,2]
[343275140,1732537852694,-500.0,0.00027454,2]
[343275141,1732537852703,-500.0,0.00027454,2]
[343275142,1732537852713,-520.20597458,0.00027454,2]
[343275143,1732537852722,-500.0,0.00027454,2]
[343275144,1732537852732,-500.0,0.00027454,2]
[343275145,1732537852742,-500.0,0.00027454,2]
[343275146,1732537852752,-604.56243688,0.00027454,2]
[343275147,1732537852762,-500.0,0.00027454,2]
[343275148,1732537852771,-500.0,0.00027454,2]
[343275149,1732537852780,-759.69,0.00027454,2]
[343275150,1732537852790,-500.0,0.00027454,2]
[343275151,1732537852800,-500.0,0.00027454,2]
[343275152,1732537852809,-500.0,0.00027454,2]
[343275153,1732537852818,-500.0,0.00027454,2]
[343275154,1732537852827,-500.0,0.00027454,2]
[343275155,1732537852837,-500.0,0.00027454,2]
[343275156,1732537852847,-500.0,0.00027454,2]
[343275157,1732537852856,-641.61433354,0.00027454,2]
[343275158,1732537852868,-526.44104164,0.00027454,2]
[343275159,1732537852877,-234.99878533,0.00027454,2]
[343275160,1732537852887,-500.0,0.00027454,2]
[343275161,1732537852896,-500.0,0.00027454,2]
[343275162,1732537852906,-500.0,0.00027454,2]
[343275163,1732537852915,-500.0,0.00027454,2]
[343275164,1732537852925,-506.44,0.00027454,2]
[343275165,1732537852935,-500.0,0.00027454,2]
[343275166,1732537852944,-500.0,0.00027454,2]
[343275167,1732537852953,-500.0,0.00027454,2]
[343275168,1732537852963,-500.0,0.00027454,2]
[343275169,1732537852972,-500.0,0.00027454,2]
[343275170,1732537852981,-500.0,0.00027454,2]
[343275171,1732537852991,-500.0,0.00027454,2]
[343275172,1732537853000,-500.0,0.00027465,2]
[343275173,1732537853010,-3165.31,0.00027465,2]
[343275174,1732537853019,-769.4,0.00027465,2]
[343275175,1732537853028,-2256.66,0.00027465,2]
[343275176,1732537853038,-500.0,0.00027465,2]
[343275177,1732537853047,-500.0,0.00027465,2]
[343275178,1732537853057,-393.71156544,0.00027468,2]
[343275179,1732537853066,-13350.69,0.00027468,2]
[343275180,1732537853076,-500.0,0.00027468,2]
[343275181,1732537853085,-500.0,0.00027468,2]
[343275182,1732537853095,-549.13,0.00027468,2]
[343275183,1732537853104,-500.0,0.00027468,2]
[343275184,1732537853114,-500.0,0.00027468,2]
[343275185,1732537853125,-601.52,0.00027468,2]
[343275186,1732537853135,-500.0,0.00027468,2]
[343275187,1732537853144,-500.0,0.00027468,2]
[343275188,1732537853153,-500.0,0.00027468,2]
[343275189,1732537853163,-500.0,0.00027468,2]
[343275190,1732537853172,-500.0,0.00027468,2]
[343275191,1732537853182,-500.0,0.00027468,2]
[343275192,1732537853192,-1119.37,0.00027468,2]
[343275193,1732537853201,-1000.0,0.00027521,5]
[343275194,1732537853211,-500.0,0.00027589,2]
[343275195,1732537853221,-500.0,0.00027589,2]
[343275196,1732537853231,-404.98,0.00027589,2]
[343275197,1732537853241,-500.0,0.00027589,2]
[343275198,1732537853250,-500.0,0.00027589,2]
[343275199,1732537853260,-247.36,0.00027589,2]
[343275200,1732537853270,-503.89664308,0.00027589,2]
[343275201,1732537853279,-329.82,0.00027589,2]
[343275202,1732537853289,-500.0,0.00027589,2]
[343275203,1732537853298,-589.38794169,0.00027589,2]
[343275204,1732537853308,-500.0,0.00027589,2]
[343275205,1732537853317,-500.0,0.00027589,2]
[343275206,1732537853327,-500.0,0.00027589,2]
[343275207,1732537853336,-500.0,0.00027589,2]
[343275208,1732537853346,-184.75112473,0.00027589,2]
[343275209,1732537853355,-500.0,0.00027589,2]
[343275210,1732537853364,-500.0,0.00027589,2]
[343275211,1732537853377,-500.0,0.00027589,2]
[343275212,1732537853386,-507.04639126,0.00027589,2]
[343275213,1732537853397,-515.29125445,0.00027589,2]
[343275214,1732537853406,-500.0,0.00027589,2]
[343275215,1732537853419,-500.0,0.00027589,2]
[343275216,1732537853429,-500.0,0.00027589,2]
[343275217,1732537853438,-561.73714821,0.00027589,2]
[343275218,1732537853448,-502.48465578,0.00027589,2]
[343275219,1732537853459,-500.0,0.00027589,2]
[343275220,1732537853468,-502.346613,0.00027589,2]
[343275221,1732537853478,-500.0,0.00027589,2]
[343275222,1732537853487,-500.0,0.00027589,2]
[343275223,1732537853499,-500.0,0.00027589,2]
[343275224,1732537853509,-500.0,0.00027589,2]
[343275225,1732537853519,-500.0,0.00027589,2]
[343275226,1732537853529,-500.0,0.00027589,2]
[343275227,1732537853538,-501.16310839,0.00027589,2]
[343275228,1732537853548,-500.0,0.00027589,2]